[Event "4NCL 2022-2023"]
[Site "Daventry"]
[Date "2023.02.12"]
[Round "6.20"]
[White "Rendle, Thomas E"]
[Black "Townsend, M Paul"]
[Result "1/2-1/2"]
[ECO "E07"]
[WhiteElo "2380"]
[BlackElo "2198"]
[Annotator "TA"]
[PlyCount "85"]
[EventDate "2022.10.20"]
[EventType "team-tourn"]
[EventCountry "ENG"]
[SourceTitle "playchess.com"]
[Source "ChessBase"]
[SourceQuality "1"]
[TimeControl "40/6000+30:2400+30"]

{[%evp 16,85,14,6,25,0,0,0,0,0,0,-10,0,0,0,0,0,0,0,0,0,0,0,-19,0,-54,-30,-20,0,0,9,0,31,0,6,7,19,16,29,29,29,29,29,18,17,0,0,0,0,0,0,0,0,0,0,0,0,0,26,36,21,23,27,0,0,0,0,0,6,0,0,0]} 1. d4 {[%emt 0:00:04]} e6 {[%emt 0:00:20]} 2. c4 {[%emt 0:01:49]} Nf6 {[%emt 0:00:20]} 3. g3 {[%emt 0:00:06]} d5 {[%emt 0:00:29]} 4. Bg2 {[%emt 0:00:10]} Be7 {[%emt 0:00:26]} 5. Nf3 {[%emt 0:00:08]} O-O {[%emt 0:00:07]} 6. O-O {[%emt 0:00:06]} c6 {[%emt 0:00:19]} 7. Nc3 {[%emt 0:00:43]} Nbd7 {[%emt 0:01:30] 7...a5 is the modern continuation.} 8. Qd3 {[%emt 0:04:29]} b6 {[%emt 0:14:31]} 9. e4 {[%emt 0:00:53][%cal Be2e4,Be4e5][%mdl 32]} Bb7 {[%emt 0:05:40] E07: Closed Catalan: Main Line (5 Nf3 0-0 6 0-0 Nbd7).} (9... Ba6 $5 {[%cal Ra6c4]} 10. b3 b5 $11) 10. e5 {[%emt 0:08:28]} dxc4 {[%emt 0:07:04]} 11. Qxc4 {[%emt 0:00:18]} Nd5 {[%emt 0:00:12]} 12. Nxd5 {[%emt 0:00:33]} cxd5 {[%emt 0:00:15]} 13. Qd3 {[%emt 0:02:56] [#]} Nb8 $146 {[%emt 0:02:42]} ({Predecessor:} 13... a5 14. Re1 Ba6 15. Qe3 Rc8 16. Bd2 Nb8 17. Rac1 Nc6 18. Rc2 Qd7 19. Rec1 Rc7 {0-1 Lagno,K (2523)-Cheparinov,I (2681) Wch Blitz 9th 2015 (13)}) 14. Rd1 {[%emt 0:06:24]} Ba6 {[%emt 0:01:55]} 15. Qe3 {[%emt 0:02:28]} Nc6 {[%emt 0:00:38]} 16. Bd2 {[%emt 0:00:58]} Rc8 {[%emt 0:03:06]} 17. h4 {[%emt 0:06:14]} Na5 {[%emt 0:15:01]} 18. b3 {[%emt 0:06:28]} Qd7 {[%emt 0:02:51]} 19. Bh3 {[%emt 0:06:30]} Nc6 {[%emt 0:05:46]} 20. Qe1 {[%emt 0:04:33]} (20. Ne1 $11) 20... Ba3 {[%emt 0:08:35]} (20... Bd3 $5 {[%cal Rd3c2]} 21. Qe3 Bc2 $15) 21. Bc1 {[%emt 0:06:25] Inhibits Bb2.} Bxc1 {[%emt 0:10:59]} 22. Raxc1 {[%emt 0:01:17]} Qe7 {[%emt 0:00:45]} 23. Qd2 {[%emt 0:03:30]} Qa3 {[%emt 0:04:33]} 24. h5 {[%emt 0:11:41]} (24. Ng5 {seems wilder.} Qe7 25. Qc2 g6 26. Qd2) 24... h6 {[%emt 0:06:43]} 25. g4 {[%emt 0:02:11]} Qe7 {[%emt 0:00:58]} 26. Rc3 {[%emt 0:07:37]} Nb4 {[%emt 0:03:08]} 27. Rdc1 {[%emt 0:00:47] [#] Hoping for a3.} Rxc3 {[%emt 0:01:34]} 28. Rxc3 {[%emt 0:00:06] Strongly threatening a3.} Rc8 $1 {[%emt 0:00:50]} 29. a3 {[%emt 0:03:02]} Nc6 $1 {[%emt 0:01:38]} 30. Qc1 {[%emt 0:01:54]} Qd7 {[%emt 0:02:19]} 31. g5 {[%emt 0:02:45]} Ne7 {[%emt 0:02:55]} 32. gxh6 {[%emt 0:04:41]} Rxc3 {[%emt 0:00:16]} 33. Qxc3 {[%emt 0:01:02]} gxh6 {[%emt 0:00:17]} 34. Qe3 {[%emt 0:02:26]} Kh7 {[%emt 0:01:17]} 35. Nh2 {[%emt 0:01:49]} Ng8 {[%emt 0:02:17]} 36. f4 {[%emt 0:05:33]} Qd8 {[%emt 0:03:22]} 37. f5 {[%emt 0:00:17]} exf5 {[%emt 0:00:10]} 38. Bxf5+ {[%emt 0:00:36]} Kg7 {[%emt 0:00:25]} 39. Nf3 {[%emt 0:02:22]} Bc8 {[%emt 0:00:34] The position is equal.} 40. Qf4 {[%emt 0:03:17] [#] aiming for Qg4+.} Bxf5 {[%emt 0:00:51]} 41. Qxf5 {[%emt 0:41:11]} Qc7 {[%emt 0:03:19]} 42. Kg2 {[%emt 0:00:00]} Qc6 {[%emt 0:04:26]} 43. Qg4+ {[%emt 0:00:00] Weighted Error Value: White=0.08 (flawless) /Black=0.05 (flawless)} 1/2-1/2

[Event "4NCL 2022-2023"]
[Site "Daventry"]
[Date "2023.02.12"]
[Round "6.21"]
[White "Movileanu, Daniela"]
[Black "Grieve, Harry"]
[Result "0-1"]
[ECO "B42"]
[WhiteElo "2169"]
[BlackElo "2442"]
[Annotator "TA"]
[PlyCount "66"]
[EventDate "2022.10.20"]
[EventType "team-tourn"]
[EventCountry "ENG"]
[SourceTitle "playchess.com"]
[Source "ChessBase"]
[SourceQuality "1"]
[TimeControl "40/6000+30:2400+30"]

{[%evp 15,66,8,15,0,8,3,53,60,42,49,56,51,64,49,62,6,3,0,8,-3,37,51,37,-54,-49,-52,-52,-73,0,-306,-331,-358,-355,-383,-365,-450,-409,-559,-475,-508,-518,-554,-561,-658,-650,-983,-960,-1150,-1186,-1171,-1129,-1076,-991]} 1. e4 {[%emt 0:06:39]} c5 {[%emt 0:00:06]} 2. Nf3 {[%emt 0:00:35]} e6 {[%emt 1:41:24]} 3. d4 {[%emt 0:00:16]} cxd4 {[%emt 0:00:00]} 4. Nxd4 {[%emt 0:00:06]} a6 {[%emt 0:00:00]} 5. Bd3 {[%emt 0:01:23]} Bc5 {[%emt 0:00:00]} 6. Nb3 {[%emt 0:00:49]} Ba7 {[%emt 0:00:00]} 7. O-O {[%emt 0:01:03]} Nc6 {[%emt 0:00:00]} 8. Nc3 {[%emt 0:01:57]} Nf6 {[%emt 0:00:00]} 9. Bf4 {[%emt 0:05:30] B42: Sicilian: Kan Variation: 5 Bd3.} d6 {[%emt 0:00:00]} 10. Be2 {[%emt 0:04:36]} Ne5 {[%emt 0:00:00]} ({Black should play} 10... e5 $11 11. Bg5 h6 12. Bxf6 Qxf6) 11. Qd2 $14 {[%emt 0:02:18] [#] White is slightly better.} Bb8 $146 {[%emt 0:00:00]} ({Predecessor:} 11... Qe7 12. Rad1 Bb8 13. a4 O-O 14. Bg3 Bd7 15. h3 b5 16. axb5 axb5 17. Qd4 Rc8 18. Bxb5 Rxc3 19. Bxe5 Rxb3 20. Bxf6 Qxf6 {1-0 Chevrier,T (2163)-Peyre,T (1982) Avoine op 24th 2009 (4)}) 12. Rad1 {[%emt 0:05:18] [#] Hoping for Bxe5.} Bd7 {[%emt 0:00:00]} 13. a4 {[%emt 0:12:31]} Qc7 {[%emt 0:00:00]} 14. Bg3 {[%emt 0:03:46]} O-O {[%emt 0:00:00]} 15. f4 {[%emt 0:02:43]} (15. Bh4 $14) 15... Nc4 $11 {[%emt 0:00:00]} 16. Bxc4 {[%emt 0:02:22]} Qxc4 {[%emt 0:00:00]} 17. e5 {[%emt 0:04:03]} Nd5 {[%emt 0:00:00]} 18. Nxd5 {[%emt 0:03:40]} exd5 {[%emt 0:00:00]} 19. Kh1 {[%emt 0:01:54]} ({Much weaker is} 19. Qxd5 Qxc2 20. Nd4 Qc5 21. Qxb7 Ra7 $11) (19. exd6 $14 Bxa4 20. Nd4 (20. Qxd5 Qxc2 21. Nd4 Ba7 $14)) 19... Bxa4 $15 {[%emt 0:00:00]} 20. Nd4 {[%emt 0:18:45] And now b3 would win.} Bd7 {[%emt 0:00:00]} 21. Rde1 {[%emt 0:05:17]} Re8 {[%emt 0:00:00]} ({Black should try} 21... Ba7 $17 22. Bf2 Bb8) 22. f5 $2 {[%emt 0:03:45][%mdl 8192]} ({Don't play} 22. b3 Qc8 $15) (22. e6 $11 {and White has nothing to worry.} fxe6 23. b3) 22... dxe5 $19 {[%emt 0:00:00]} 23. Nf3 {[%emt 0:05:59]} f6 {[%emt 0:00:00]} (23... Bxf5 $2 {loses.} 24. Nxe5 Bxe5 25. Rxf5 Bxb2 26. Rxe8+ Rxe8 27. Qxd5 Qxd5 28. Rxd5 $19) 24. b3 {[%emt 0:00:12]} Qc5 {[%emt 0:00:00]} 25. Nh4 {[%emt 0:00:48]} a5 {[%emt 0:00:00]} 26. Qe2 {[%emt 0:01:22]} a4 {[%emt 0:00:00] Black is clearly winning.} 27. bxa4 {[%emt 0:01:27]} Rxa4 {[%emt 0:00:00]} 28. Qh5 {[%emt 0:03:25]} Qxc2 {[%emt 0:00:12]} 29. Bf4 {[%emt 0:00:45]} Re4 {[%emt 0:03:35]} 30. Bh6 {[%emt 0:01:27] [#]} Qf2 $3 {[%emt 0:02:58][%mdl 512]} 31. Nf3 {[%emt 0:00:46]} (31. Rb1 Qxh4) 31... Rxe1 {[%emt 0:00:02]} 32. Rxe1 {[%emt 0:00:06]} gxh6 {[%emt 0:01:30]} 33. Qxh6 {[%emt 0:01:31]} Rf8 {[%emt 0:00:11] Magnificent play by Grieve!   Weighted Error Value: White=0.86/Black=0.16 (very precise)} 0-1

[Event "4NCL 2022-2023"]
[Site "Daventry"]
[Date "2023.02.12"]
[Round "6.22"]
[White "Dong, Bao Nghia"]
[Black "Li, Harry"]
[Result "1-0"]
[ECO "E04"]
[WhiteElo "2361"]
[BlackElo "2099"]
[Annotator "TA"]
[PlyCount "141"]
[EventDate "2022.10.20"]
[EventType "team-tourn"]
[EventCountry "ENG"]
[SourceTitle "playchess.com"]
[Source "ChessBase"]
[SourceQuality "1"]
[TimeControl "40/6000+30:2400+30"]

{[%evp 17,141,-83,-40,-85,-87,-83,-87,-121,-107,-162,-167,-194,-186,-195,-185,-337,-340,-389,-364,-422,-299,-261,-203,-185,-173,-175,-36,-33,-50,-17,-30,-87,-107,-101,-64,-68,-65,-82,0,0,0,0,0,-484,-478,-465,-461,-443,0,0,0,0,0,0,0,0,12,14,42,46,22,8,71,43,78,12,15,12,15,16,14,14,25,22,44,38,66,60,318,318,312,312,295,8,37,0,312,310,310,310,295,291,291,72,233,0,490,474,423,390,4198,2813,29960,-29993,29974,29975,29992,29974,29981,29980,29983,29981,29981,29982,29986,29987,29988,29981,29981,29982,29982,29983,29985,29986,29987,29988]} 1. d4 {[%emt 0:03:44]} Nf6 {[%emt 0:00:05]} 2. Nf3 {[%emt 0:00:06]} d5 {[%emt 0:00:06]} 3. c4 {[%emt 0:00:04]} e6 {[%emt 0:00:07]} 4. g3 {[%emt 0:00:05]} Be7 {[%emt 0:03:15]} 5. Bg2 {[%emt 0:00:06]} O-O {[%emt 0:00:02]} 6. O-O {[%emt 0:00:08]} dxc4 {[%emt 0:00:02]} 7. Nc3 {[%emt 0:01:22]} a6 {[%emt 0:00:32]} 8. a4 {[%emt 0:01:06]} Nc6 {[%emt 0:00:06]} 9. e4 {[%emt 0:01:03]} Rb8 {[%emt 0:00:54]} 10. Re1 {[%emt 0:02:01] E04: Open Catalan: 5 Nf3.} b5 {[%emt 0:05:07]} 11. axb5 {[%emt 0:00:49]} axb5 {[%emt 0:00:01] [#]} 12. d5 $146 {[%emt 0:00:23] Black is better.} ({Predecessor:} 12. e5 Nd5 13. h4 Ncb4 14. Ng5 Bb7 15. Qh5 Bxg5 16. Bxg5 Qe8 17. Bf6 gxf6 18. exf6 {½-½ Batchelor,P (2310)-Ashton,A (2319) BCF-chTb 1819 (4NCL) 2018 (7.83)}) 12... exd5 {[%emt 0:00:24]} 13. e5 {[%emt 0:00:15] [#]} (13. exd5 $17 Nb4 14. Ne5) 13... Ne4 $1 {[%emt 0:09:26]} 14. Nxd5 {[%emt 0:02:14]} (14. Qxd5 Nxc3) 14... Nc5 {[%emt 0:00:17]} 15. Nxe7+ {[%emt 0:01:29]} Qxe7 {[%emt 0:00:46]} 16. Qd5 $2 {[%emt 0:02:17]} (16. Bg5 Qd7 17. e6 Nxe6 18. Be3) 16... Nb4 $19 {[%emt 0:01:28]} 17. Qd4 {[%emt 0:02:53]} Nb3 {[%emt 0:03:06]} 18. Qa7 {[%emt 0:03:29]} Nc6 {[%emt 0:07:33]} 19. Bg5 {[%emt 0:04:13]} Qd7 {[%emt 0:04:22]} (19... Nxa1 20. Qxb8 Nxb8 21. Bxe7 $17) (19... f6 $2 20. exf6 $19) 20. e6 {[%emt 0:02:32]} fxe6 {[%emt 0:00:16]} 21. Ne5 {[%emt 0:00:27]} Nxa7 {[%emt 0:06:31]} (21... Nxe5 $19 22. Qxb8 Nd3) 22. Nxd7 $15 {[%emt 0:00:07]} Nxa1 {[%emt 0:00:15]} 23. Nxb8 {[%emt 0:01:50]} Nb3 {[%emt 0:03:22]} 24. Bf4 {[%emt 0:05:49]} (24. Be3 $11 c5 25. Rd1) 24... c5 {[%emt 0:08:25]} 25. Rd1 {[%emt 0:01:29]} Nd4 {[%emt 0:33:14] And now ...Ne2+ would win.} 26. Kf1 {[%emt 0:02:58] Prevents Ne2.} Rf7 {[%emt 0:14:58]} 27. Bd6 {[%emt 0:04:28] A strong pair of Bishops.} Bb7 {[%emt 0:02:57]} (27... Nb3 $1 $17 28. Nc6 Nxc6 29. Bxc6 Bb7) 28. Bxc5 $11 {[%emt 0:00:07]} Bxg2+ {[%emt 0:00:05]} 29. Kxg2 {[%emt 0:00:07]} e5 {[%emt 0:00:04]} 30. Ra1 $2 {[%emt 0:00:33][%mdl 8192]} (30. Bxd4 $11 exd4 31. Rxd4) 30... Nb3 $1 $19 {[%emt 0:00:45][%csl LRa1,LRc5]} 31. Rxa7 {[%emt 0:00:56][%cal Oa7a8]} Nxc5 {[%emt 0:00:02][%mdl 4096] Endgame KRN-KRN} 32. Ra5 {[%emt 0:00:15]} Rb7 {[%emt 0:01:55]} (32... Nd3 $19 33. f3 e4 34. fxe4 Rf2+ 35. Kh3 Rxb2) 33. Nc6 $11 {[%emt 0:00:10] Ra8+ is the strong threat.} g6 {[%emt 0:01:31] Threatens to win with ...Nd3.} 34. Nxe5 {[%emt 0:00:29]} Nb3 {[%emt 0:03:30]} 35. Ra8+ {[%emt 0:01:57]} Kg7 {[%emt 0:00:04]} 36. f4 {[%emt 0:00:10]} Nd4 {[%emt 0:00:47]} 37. Rd8 {[%emt 0:01:55]} Ne6 {[%emt 0:01:04]} 38. Rd5 {[%emt 0:00:05]} Kf6 {[%emt 0:00:47]} 39. Kf3 {[%emt 0:00:27]} Ke7 {[%emt 0:01:12]} (39... Rc7 $1 $11) 40. Nc6+ {[%emt 0:00:24]} Kf7 {[%emt 0:00:35]} 41. Rd6 {[%emt 0:41:16] White is more active.} (41. Ke3 $16) 41... Rc7 {[%emt 0:00:00][%cal Oc7c6]} 42. Ne5+ {[%emt 0:00:00]} Ke7 $1 {[%emt 0:00:00]} 43. Rb6 {[%emt 0:00:00]} c3 {[%emt 0:09:04]} 44. bxc3 {[%emt 0:00:00]} (44. Rxb5 $2 c2 45. Nd3 Rd7 $19) 44... Rxc3+ {[%emt 0:00:01]} 45. Ke4 {[%emt 0:00:00]} Rc5 {[%emt 0:02:17]} 46. h4 {[%emt 0:00:00]} Nc7 {[%emt 0:32:10]} 47. h5 {[%emt 0:00:00][%mdl 64] Deflection} gxh5 {[%emt 0:00:00][%mdl 8192]} (47... Nd5 $1 $14 48. Rb7+ Ke6) 48. f5 $1 $18 {[%emt 0:00:00] Intending f6+ and mate.} Ne8 {[%emt 0:00:00] ...Nd6+ would be deadly.} 49. Re6+ {[%emt 0:00:00]} Kd8 {[%emt 0:00:00]} 50. Nc6+ $2 {[%emt 0:00:00]} ({Only move:} 50. f6 $18 {f7 would kill now.} Nxf6+ 51. Rxf6) 50... Kd7 {[%emt 0:00:00]} (50... Kc7 $5 {[%cal Re8d6]} 51. Ne5 Nd6+ 52. Kd4 Rc1 $14) 51. Ne5+ {[%emt 0:00:00][%mdl 8192]} (51. Nb8+ $14 Kd8 52. f6 Rc4+ 53. Kf5 Rc5+ 54. Ke4 Rc4+ 55. Kd3 Nxf6 56. Rxf6) 51... Kd8 {[%emt 0:00:00]} 52. f6 {[%emt 0:00:00]} Nxf6+ {[%emt 0:00:00]} 53. Rxf6 {[%emt 0:00:00] KRN-KR} Rc3 {[%emt 0:00:00]} 54. Kf4 {[%emt 0:00:00]} b4 {[%emt 0:00:00]} 55. Rf7 {[%emt 0:00:00]} (55. Rb6 $18 {and White stays clearly on top.}) 55... b3 $2 {[%emt 0:00:00] [#]} (55... Kc8 $16) 56. Rxh7 $2 {[%emt 0:00:00]} (56. Rb7 $1 $18) 56... b2 $2 {[%emt 0:00:00][%mdl 8192]} (56... Kc8 $11 57. Nf7 (57. Rxh5 b2 $11) 57... Rc6 58. Rxh5 Rf6+ 59. Ke3 (59. Rf5 $2 Rxf5+ 60. Kxf5 b2 $19) 59... Rxf7) 57. Rb7 {[%emt 0:00:00]} (57. Rxh5 b1=Q 58. g4 Qb4+ 59. Kg5 Rc5 $19) 57... Rc2 {[%emt 0:00:00]} 58. Nd3 {[%emt 0:00:00]} h4 $2 {[%emt 0:00:00]} (58... Rc4+ 59. Kf3 Rd4 60. Nxb2 Rd5) 59. gxh4 {[%emt 0:00:00]} ({Inferior is} 59. Rxb2 Rxb2 60. Nxb2 hxg3 61. Kxg3 $11) 59... b1=Q {[%emt 0:00:00]} 60. Rb6 $4 {[%emt 1:14:12][%mdl 8192] [#]} (60. Rxb1 {was the only winning move.} Rh2 61. Kg5 Ra2 62. h5 Ra5+ 63. Kg6 Ra3 64. Nf4 Kd7 65. h6 Ra6+ 66. Kg5) 60... Qb2 $4 {[%mdl 8192]} 61. Rxb2 {[%emt 0:00:00] KRN-KR. White mates.} Ke7 {[%emt 0:00:00]} 62. Rb6 {[%emt 0:00:00]} Kf7 {[%emt 0:00:00]} 63. Ne5+ {[%emt 0:00:00]} Kg7 {[%emt 0:00:00]} 64. Kg5 {[%emt 0:00:00]} Rg2+ {[%emt 0:00:00]} 65. Ng4 {[%emt 0:00:00]} Ra2 {[%emt 0:00:00]} 66. Rb7+ {[%emt 0:00:00]} Kf8 {[%emt 0:00:00]} 67. Kg6 {[%emt 0:00:00]} Rg2 {[%emt 0:00:00]} 68. Rb4 {[%emt 0:00:00]} Ra2 {[%emt 0:00:00]} 69. h5 {[%emt 0:00:00][%cal Bh4h5,Bh5h6][%mdl 32]} Ra6+ {[%emt 0:00:00]} 70. Nf6 {[%emt 0:00:00]} Ra1 {[%emt 0:00:00]} 71. h6 {[%emt 0:00:00] What a bad dream for Black.   Weighted Error Value: White=0.56/Black=0.75} 1-0

[Event "4NCL 2022-2023"]
[Site "Daventry"]
[Date "2023.02.12"]
[Round "6.23"]
[White "Arnott, Jonathan W"]
[Black "Foisor, Mihaela-Veronica"]
[Result "1/2-1/2"]
[ECO "C07"]
[WhiteElo "2073"]
[BlackElo "2195"]
[Annotator "TA"]
[PlyCount "122"]
[EventDate "2022.10.20"]
[EventType "team-tourn"]
[EventCountry "ENG"]
[SourceTitle "playchess.com"]
[Source "ChessBase"]
[SourceQuality "1"]
[TimeControl "40/6000+30:2400+30"]

{[%evp 9,122,97,119,114,129,76,87,75,68,67,111,96,111,115,96,49,105,47,62,8,5,0,0,0,0,-19,-19,-82,-22,-13,0,-14,17,19,17,12,17,17,17,22,45,47,81,81,83,90,148,138,143,60,121,96,180,115,119,113,118,99,110,103,150,152,157,159,183,159,186,189,241,222,201,195,458,468,441,434,512,489,610,610,909,1058,957,833,5389,2379,2364,887,485,0,0,0,0,0,0,0,0,0,0,0,0,0,0,0,0,0,0,0,0,0,0,0,0,0,0]} 1. e4 {[%emt 0:00:02]} e6 {[%emt 0:00:17]} 2. d4 {[%emt 0:00:18]} d5 {[%emt 0:00:04]} 3. Nd2 {[%emt 0:01:02]} c5 {[%emt 0:01:27]} 4. exd5 {[%emt 0:00:12]} cxd4 {[%emt 0:03:07]} 5. Bb5+ {[%emt 0:01:40]} Bd7 {[%emt 0:02:53] [#]} 6. dxe6 $1 {[%emt 0:03:42] C07: French Tarrasch: 3...c5, 4 Ngf3 and 4 exd5 Qxd5.} fxe6 {[%emt 0:07:46][%cal Og8f6]} 7. Bxd7+ {[%emt 0:13:46]} (7. Qh5+ $142 g6 8. Qe5) 7... Qxd7 $16 {[%emt 0:01:48]} 8. Ngf3 {[%emt 0:01:42] White is better.} Nc6 {[%emt 0:01:01]} 9. O-O {[%emt 0:02:46] [#]} O-O-O $146 {[%emt 0:11:14]} ({Predecessor:} 9... Bd6 10. Re1 Nge7 11. Ng5 e5 12. Nde4 O-O 13. c3 Nf5 14. Qb3+ Kh8 15. Qd5 Rae8 {1-0 Azimova,K (2063)-Djogteva,J (1754) Wch U20 Girls 32nd 2014 (8)}) 10. Nc4 {[%emt 0:03:04]} Bd6 {[%emt 0:02:00] Repels Bf4} 11. Nxd6+ {[%emt 0:10:19]} (11. Nxd4 $2 Nxd4 12. c3 Nc6 $19) 11... Qxd6 {[%emt 0:00:09]} 12. Ng5 {[%emt 0:00:11]} (12. Re1 $16) 12... Nh6 {[%emt 0:02:02]} (12... Qd7 $14) 13. Qe2 {[%emt 0:00:36]} (13. Qd3 $16) 13... e5 $14 {[%emt 0:01:33]} 14. f4 {[%emt 0:04:40]} (14. Re1 $14) 14... Rhe8 $11 {[%emt 0:08:09]} 15. fxe5 {[%emt 0:02:15]} Nxe5 {[%emt 0:05:06]} 16. Bf4 {[%emt 0:01:47][%cal Og5f3]} Qc5 $1 {[%emt 0:11:52] Hoping for ...Ng6.} 17. Kh1 {[%emt 0:00:03] And now Rae1 would win.} Ng6 {[%emt 0:10:57] A dynamic duo of knights.} (17... d3 18. cxd3 Nxd3 19. Qf3 $14) 18. Qd2 {[%emt 0:02:36]} (18. Qf2 $11) 18... Nxf4 {[%emt 0:05:56]} (18... Nf5 $1 $17 {[%cal Rf5e3] ...Ne3 would be deadly.} 19. Rf2 Ne3) 19. Qxf4 {[%emt 0:00:11]} Qe5 {[%emt 0:01:07]} (19... Qxc2 $2 20. Rac1 d3 21. Rxc2+ $18) (19... Re2 20. Rae1 Rxe1 21. Rxe1 $14) 20. Qh4 {[%emt 0:06:59]} Kb8 {[%emt 0:09:30]} 21. Rae1 $36 {[%emt 0:04:14][%mdl 2048] White fights for an advantage.} (21. Nxh7 Nf5 22. Qg5 Ne3 $17) 21... Nf5 {[%emt 0:00:53]} 22. Rxe5 {[%emt 0:09:10]} (22. Qxh7 $2 Qxe1 23. Qxf5 Qe5 $19) 22... Nxh4 {[%emt 0:00:11]} 23. Rxe8 {[%emt 0:00:20]} Rxe8 {[%emt 0:00:11][%mdl 4096] Endgame KRN-KRN} 24. g3 {[%emt 0:00:36]} (24. Nxh7 Re2 25. Ng5 Nf5 $11) 24... Ng6 {[%emt 0:05:08]} 25. Rf2 {[%emt 0:04:20] Repels Re2} ({Of course not} 25. Nxh7 Re2 26. Rc1 Re5 $11) 25... h5 {[%emt 0:04:06]} 26. Nf3 {[%emt 0:02:14]} Re4 {[%emt 0:02:10]} 27. Rd2 {[%emt 0:01:25]} h4 {[%emt 0:02:18]} (27... Ne5 $142 28. Rxd4 Re3) 28. Rxd4 $16 {[%emt 0:04:15]} ({Don't take} 28. Nxd4 $6 h3 29. Nf3 Ne5 30. Rd8+ Kc7 $14) 28... Re3 {[%emt 0:01:49]} 29. Rd3 {[%emt 0:05:36]} (29. Nxh4 $16 Ne5 30. Rd2) 29... Re2 {[%emt 0:01:07]} (29... Rxd3 $14 30. cxd3 hxg3) 30. Rd2 {[%emt 0:00:18]} ({But not} 30. gxh4 Rxc2 31. Rd7 Rf2) 30... Re4 {[%emt 0:03:40]} (30... Rxd2 $16 31. Nxd2 hxg3) 31. Kg2 {[%emt 0:05:12]} ({White should try} 31. Rd7 $18) 31... hxg3 {[%emt 0:01:20]} 32. hxg3 {[%emt 0:00:06]} Kc7 {[%emt 0:01:32]} 33. Kf2 {[%emt 0:00:09]} Ne7 {[%emt 0:02:34]} 34. Rd4 {[%emt 0:03:08]} Rxd4 {[%emt 0:00:51]} (34... Re6 $142) 35. Nxd4 {[%emt 0:00:04] KN-KN} Kd6 {[%emt 0:00:10]} 36. Ke3 $1 {[%emt 0:01:13]} Ke5 {[%emt 0:00:22] [#]} 37. c4 {[%emt 0:00:46][%cal Bc2c4,Bc4c5][%mdl 32] Repels Nd5+} Nc8 {[%emt 0:00:54]} 38. g4 {[%emt 0:01:03][%cal Bg3g4,Bg4g5][%mdl 32]} Nd6 {[%emt 0:01:23]} (38... Nb6 $142) 39. b3 $18 {[%emt 0:00:25]} Kf6 {[%emt 0:00:40]} 40. c5 {[%emt 0:05:17]} Nc8 {[%emt 0:00:32]} (40... Nf7 41. c6 bxc6 42. Nxc6 g5) 41. Kf4 {[%emt 0:42:25]} Ne7 {[%emt 0:00:00]} 42. g5+ {[%emt 0:00:00]} Kg6 {[%emt 0:00:00]} 43. Ne6 {[%emt 0:00:00]} b6 {[%emt 0:00:00]} 44. cxb6 {[%emt 0:00:00]} Nd5+ {[%emt 0:00:00]} 45. Ke5 {[%emt 0:00:00] Intending b7 and mate.} Nxb6 {[%emt 0:00:00]} 46. Kd6 {[%emt 0:00:00]} Kf5 {[%emt 0:00:00]} 47. Nxg7+ {[%emt 0:00:00]} Kxg5 {[%emt 0:00:00]} 48. Kc6 {[%emt 0:00:00]} (48. Ne8 $142 Kf5 49. Nc7) 48... Kf6 {[%emt 0:00:00] [#]} 49. Kb7 $2 {[%emt 0:00:00]} Kxg7 $11 {[%emt 0:00:00] The position is equal.} 50. Kxa7 {[%emt 0:00:00] KN-KPP} Nd7 {[%emt 0:07:25]} 51. b4 {[%emt 0:00:00]} Kf7 {[%emt 0:00:45]} 52. Kb7 {[%emt 0:00:00]} Ke6 {[%emt 0:01:15]} 53. a4 {[%emt 0:00:00][%cal Ba2a4,Ba4a5,Ba5a6][%mdl 32]} Kd5 {[%emt 0:00:26]} 54. a5 {[%emt 0:00:00] Threatening mate with a6.} Kc4 $1 {[%emt 0:00:24]} 55. a6 {[%emt 0:00:00]} Kb5 $1 {[%emt 0:00:14]} 56. a7 {[%emt 0:00:00]} Nb6 {[%emt 0:00:03]} 57. Kc7 {[%emt 0:00:00] White threatens Kb7 and mate.} Ka6 {[%emt 0:03:05]} 58. Kb8 {[%emt 0:00:00]} Nd7+ {[%emt 0:00:09]} 59. Kc7 {[%emt 0:00:00]} Kxa7 {[%emt 0:00:06]} 60. Kxd7 {[%emt 0:00:00] Kc7 would kill now.} Kb6 {[%emt 0:00:01]} 61. b5 {[%emt 0:00:00]} Kxb5 {[%emt 0:00:07] White really could win this.   Weighted Error Value: White=0.20 (precise) /Black=0.23 (precise)} 1/2-1/2

[Event "4NCL 2022-2023"]
[Site "Daventry"]
[Date "2023.02.12"]
[Round "6.24"]
[White "Purton, Ben J"]
[Black "Shaw, Peter"]
[Result "1/2-1/2"]
[ECO "B45"]
[WhiteElo "2153"]
[BlackElo "2069"]
[Annotator "TA"]
[PlyCount "43"]
[EventDate "2022.10.20"]
[EventType "team-tourn"]
[EventCountry "ENG"]
[SourceTitle "playchess.com"]
[Source "ChessBase"]
[SourceQuality "1"]
[TimeControl "40/6000+30:2400+30"]

{[%evp 15,43,-5,0,0,56,36,41,36,47,28,35,36,29,19,29,8,48,50,47,0,0,0,0,0,0,0,18,20,15,16]} 1. e4 {[%emt 0:00:20]} c5 {[%emt 0:00:26]} 2. Nf3 {[%emt 0:00:05]} e6 {[%emt 0:00:13]} 3. Nc3 {[%emt 0:00:27]} Nc6 {[%emt 0:00:32]} 4. Bb5 {[%emt 0:00:07]} Nge7 {[%emt 0:02:06]} 5. d4 {[%emt 0:04:07]} cxd4 {[%emt 0:01:02]} 6. Nxd4 {[%emt 0:00:09]} a6 {[%emt 0:06:10]} 7. Nxc6 {[%emt 0:01:57]} Nxc6 {[%emt 0:00:38]} 8. Bxc6 {[%emt 0:05:09]} bxc6 {[%emt 0:04:33]} 9. O-O {[%emt 0:01:02] B45: Sicilian Four Knights.} e5 {[%emt 0:08:45]} (9... d5 $11) 10. Qf3 {[%emt 0:03:51]} d6 {[%emt 0:09:31]} 11. Qg3 {[%emt 0:02:56] [#] White is slightly better.} g6 $146 {[%emt 0:07:06]} ({Predecessor:} 11... Be6 12. Kh1 h5 13. h3 h4 14. Qd3 Be7 15. f4 O-O 16. f5 Bc8 17. Nd1 d5 18. Ne3 dxe4 19. Qxe4 {0-1 Fressinet,L (2662)-Saric,I (2669) Wch Blitz Riadh 2017 (19)}) 12. f4 {[%emt 0:05:50][%cal Bf2f4,Bf4f5][%mdl 32]} Bg7 {[%emt 0:01:40]} 13. f5 {[%emt 0:00:51][%cal Of5f6]} O-O $1 {[%emt 0:00:49]} 14. Be3 {[%emt 0:02:01]} Kh8 {[%emt 0:10:41]} 15. Rad1 {[%emt 0:01:16] [#] Hoping for Bc5.} Qe7 {[%emt 0:05:26]} (15... gxf5 $5 {[%cal Rf5f4]} 16. Bc5 (16. exf5 d5 $11) 16... f4 $11) 16. Qf3 {[%emt 0:02:51] And now f6 would win.} f6 {[%emt 0:03:53]} 17. g4 {[%emt 0:02:13]} (17. fxg6 $14 {should be considered.} hxg6 18. h4) 17... gxf5 $11 {[%emt 0:06:16] The position is equal.} 18. gxf5 {[%emt 0:00:28]} Rg8 {[%emt 0:00:07]} 19. Kf2 {[%emt 0:00:33]} Bf8 {[%emt 0:00:38]} 20. Qh5 {[%emt 0:03:43]} Bd7 {[%emt 0:01:00][%cal Od6d5]} ({But not} 20... Qg7 21. Rg1 Qe7 22. Rxg8+ Kxg8 23. Na4 $14) (20... Rb8 $5 {[%cal Rb8b2]} 21. b3 (21. Rg1 Rxg1 22. Kxg1 Rxb2 $17) 21... d5 22. exd5 (22. Rg1 $2 d4 $19) 22... Qd7 $11) 21. Rg1 {[%emt 0:00:45]} Rxg1 {[%emt 0:02:47]} 22. Rxg1 {[%emt 0:00:12] Weighted Error Value: White=0.08 (flawless) /Black=0.10 (very precise)} 1/2-1/2